bitfinex/quotes_ETHUSD_20250314
["timestamp","ask_amount","ask_price","bid_price","bid_amount"]
[1741954447115,3.0,1908.6,1908.5,6.2233084]
[1741954447315,5.02,1908.7,1908.6,5.23944]
[1741954447541,5.02,1908.7,1908.6,0.16820981]
[1741954448748,0.4368,1908.9,1908.6,0.16820981]
[1741954448937,5.016,1908.8,1908.6,10.64686981]
[1741954449137,5.016,1908.8,1908.6,5.40752981]
[1741954450715,5.016,1908.8,1908.6,5.40743981]
[1741954451956,5.016,1908.8,1908.7,5.23916]
[1741954452139,5.016,1908.8,1908.6,5.40743981]
[1741954452648,5.016,1908.8,1908.6,0.16820981]
[1741954453048,5.4428,1908.8,1908.6,0.16820981]
[1741954453213,10.1020182,1908.8,1908.6,0.16820981]
[1741954454117,9.6752182,1908.8,1908.6,0.16820981]
[1741954454526,5.016,1908.8,1908.6,0.16820981]
[1741954455149,5.016,1908.8,1908.6,6.18286981]
[1741954455450,5.016,1908.8,1908.6,5.40756981]
[1741954455626,9.6752182,1908.8,1908.6,5.40756981]
[1741954455827,9.6752182,1908.8,1908.6,0.16820981]
[1741954457052,14.9141482,1908.8,1908.6,0.16820981]
[1741954457454,3.01,1908.9,1908.4,0.7682]
[1741954457656,8.014,1908.9,1908.7,0.91765752]
[1741954457948,8.014,1908.9,1908.7,0.751]
[1741954458151,8.014,1908.9,1908.8,0.16646896]
[1741954458718,0.01,1908.9,1908.8,0.16646896]
[1741954458939,0.01,1908.9,1908.7,0.751]
[1741954459154,9.8981982,1908.8,1908.4,6.03221]
[1741954459362,20.1502782,1908.8,1908.4,6.03221]
[1741954459525,5.23921,1908.7,1908.4,6.03221]
[1741954459727,14.9111982,1908.8,1908.4,6.03221]
[1741954460422,9.8987582,1908.6,1908.2,6.03585]
[1741954460624,9.8987582,1908.6,1908.2,6.03578]
[1741954460819,4.6592182,1908.6,1908.4,5.2399]
[1741954461121,14.9111182,1908.8,1908.5,0.7876]
[1741954461654,9.6722182,1908.8,1908.5,6.02718]
[1741954462653,4.6592182,1908.8,1908.5,6.02707]
[1741954462860,5.016,1908.8,1908.5,6.02707]
[1741954463353,9.6752182,1908.8,1908.5,6.02707]
[1741954463955,14.9142182,1908.8,1908.5,0.7876]
[1741954464129,9.6752182,1908.8,1908.5,0.7876]
[1741954464324,9.6752182,1908.8,1908.5,6.02718]
[1741954464540,0.01,1908.9,1908.6,5.23923]
[1741954464737,10.26163,1908.9,1908.5,6.02729]
[1741954465143,9.8982282,1908.8,1908.5,0.7876]
[1741954465650,4.6592182,1908.8,1908.5,6.02728]
[1741954466031,9.8981382,1908.8,1908.5,0.7876]
[1741954466327,5.23892,1908.8,1908.5,6.02728]
[1741954466531,20.1597782,1908.9,1908.5,6.02728]
[1741954466860,14.9209182,1908.9,1908.5,6.02729]
[1741954467160,20.1596482,1908.9,1908.5,6.02713]
[1741954467663,20.1597182,1908.9,1908.5,6.02713]
[1741954467963,14.9209182,1908.9,1908.5,11.26673]
[1741954468138,10.2617,1908.9,1908.5,6.02713]
[1741954468344,14.9209182,1908.9,1908.5,11.26671]
[1741954468982,0.01,1908.9,1908.5,0.7876]
[1741954469130,0.01,1908.9,1908.8,6.01989]
[1741954470028,0.01,1908.9,1908.8,6.56989]
[1741954471664,0.01,1908.9,1908.8,7.05151357]
[1741954473164,0.01,1908.9,1908.8,1.26262357]
[1741954473569,0.01,1908.9,1908.8,1.42863269]
[1741954473868,0.01,1908.9,1908.8,6.18589912]
[1741954474553,0.01,1908.9,1908.8,0.94700912]
[1741954475477,0.01,1908.9,1908.8,0.16600912]
[1741954475980,0.01,1908.9,1908.8,0.16607154]
[1741954476349,8.67541,1908.9,1908.8,0.16607154]
[1741954476669,5.23908,1908.8,1908.4,6.01659]
[1741954476980,5.23917,1908.7,1908.4,0.7768]
[1741954477180,9.8983882,1908.7,1908.4,0.7768]
[1741954477741,5.23956,1908.6,1908.2,6.06893]
[1741954477961,5.66636,1908.6,1908.2,6.06893]
[1741954478285,5.66636,1908.6,1908.2,6.06885]
[1741954478452,10.90605,1908.6,1908.2,6.06885]
[1741954478649,10.4797,1908.5,1908.2,0.8285]
[1741954478853,5.23978,1908.5,1908.2,0.8285]
[1741954480574,5.66625,1908.6,1908.3,5.24018]
[1741954480747,0.4268,1908.6,1908.3,5.24018]
[1741954480945,13.27399,1908.8,1908.4,6.04086]
[1741954481768,8.035,1908.8,1908.5,5.23961]
[1741954481956,18.51299,1908.8,1908.4,6.04086]
[1741954482157,5.23917,1908.7,1908.4,6.04086]
[1741954482558,5.23917,1908.7,1908.4,0.8011]
[1741954482753,10.3251882,1908.7,1908.2,6.06733]
[1741954482959,5.23986,1908.5,1908.2,0.8268]
[1741954483275,5.23986,1908.5,1908.2,6.0673]
[1741954483675,5.23955,1908.6,1908.2,6.0673]
[1741954483877,5.23955,1908.6,1908.2,11.30768]
[1741954484177,5.23955,1908.6,1908.2,6.06718]
[1741954484582,5.23955,1908.6,1908.2,6.06729]
[1741954485147,8.2389,1908.8,1908.4,5.23982]
[1741954485377,8.033,1908.8,1908.4,5.23973]
[1741954485585,8.033,1908.8,1908.5,0.7719]
[1741954485767,8.033,1908.8,1908.5,6.01135]
[1741954485768,5.033,1908.8,1908.5,6.01135]
[1741954486155,0.01,1908.9,1908.6,10.47862]
[1741954486468,0.01,1908.9,1908.6,5.23924]
[1741954486776,0.01,1908.9,1908.7,5.23904]
[1741954487695,0.01,1908.9,1908.8,6.02359]
[1741954488290,0.01,1908.9,1908.8,0.7847]
[1741954488496,0.01,1908.9,1908.8,6.02359]
[1741954488797,0.01,1908.9,1908.8,6.18982049]
[1741954490463,0.01,1908.9,1908.8,6.24220558]
[1741954491799,0.01,1908.9,1908.8,6.79220558]
[1741954492113,0.01,1908.9,1908.8,6.73982049]
[1741954492478,0.01,1908.9,1908.8,6.79219845]
[1741954492679,0.01,1908.9,1908.8,6.73982049]
[1741954494404,0.01,1908.9,1908.8,6.24219692]
[1741954494871,0.01,1908.9,1908.8,6.18982049]
[1741954497556,0.01,1908.9,1908.8,6.24220236]
[1741954497918,0.01,1908.9,1908.8,6.18982049]
[1741954498344,0.01,1908.9,1908.8,6.24220233]
[1741954498545,0.01,1908.9,1908.8,6.79220233]
[1741954498749,0.01,1908.9,1908.8,6.73982049]
[1741954499119,0.01,1908.9,1908.8,6.79219935]
[1741954500042,0.01,1908.9,1908.8,6.73982049]
[1741954501468,0.01,1908.9,1908.8,12.82982049]
[1741954503321,0.01,1908.9,1908.8,13.86837917]
[1741954504557,0.01,1908.9,1908.8,16.86837917]
[1741954506874,0.01,1908.9,1908.8,13.86837917]
[1741954507228,0.01,1908.9,1908.8,11.49512049]
[1741954507977,0.01,1908.9,1908.8,5.40512049]
[1741954512870,10.3346282,1908.9,1908.8,0.16623049]
[1741954513078,13.3346282,1908.9,1908.8,0.16623049]
[1741954513363,0.4268,1908.8,1908.7,5.23916]
[1741954513545,0.01,1908.9,1908.6,5.23927]
[1741954514862,3.0,1908.8,1908.6,5.23927]
[1741954515253,3.0,1908.8,1908.5,5.23969]
[1741954515455,3.0,1908.8,1908.6,5.23943]
[1741954515762,4.6692182,1908.9,1908.6,5.23943]
[1741954516077,0.01,1908.9,1908.6,5.23943]
[1741954517559,0.01,1908.9,1908.6,10.47869]
[1741954517756,0.01,1908.9,1908.7,5.23915]
[1741954518273,0.01,1908.9,1908.6,5.29178899]
[1741954518492,0.01,1908.9,1908.8,0.16532612]
[1741954518650,0.01,1908.9,1908.7,0.16551468]
[1741954518988,0.01,1908.9,1908.8,0.16532612]
[1741954519157,0.01,1908.9,1908.6,5.23927]
[1741954519493,0.01,1908.9,1908.7,0.16551468]
[1741954520028,0.01,1908.9,1908.8,0.16532612]
[1741954521574,0.01,1908.9,1908.8,0.92072612]
[1741954521778,0.01,1908.9,1908.8,6.15961612]
[1741954522402,0.01,1908.9,1908.8,5.40421612]
[1741954524402,0.01,1908.9,1908.8,5.45659824]
[1741954524901,0.01,1908.9,1908.8,12.81731612]
[1741954525411,0.01,1908.9,1908.8,12.26731612]
[1741954525703,0.01,1908.9,1908.8,12.81731612]
[1741954527988,0.01,1908.9,1908.8,11.49421612]
[1741954528385,0.01,1908.9,1908.8,12.80561612]
[1741954534711,0.01,1908.9,1908.8,13.83291338]
[1741954536113,5.66229,1910.1,1909.5,0.8135]
[1741954536334,5.66249,1910.0,1909.6,5.23669]
[1741954536534,0.4268,1910.0,1909.7,5.2364]
[1741954536921,0.4268,1910.0,1909.8,0.16259867]
[1741954537505,18.3928882,1909.9,1909.8,0.16259867]
[1741954537727,3.0,1909.7,1909.3,11.32726]
[1741954538040,0.4268,1909.5,1909.4,0.16322187]
[1741954538210,0.4268,1909.5,1909.2,10.47544]
[1741954538532,0.4268,1909.5,1909.3,0.16341031]
[1741954538708,0.4268,1909.5,1909.3,5.40082031]
[1741954539235,0.4268,1909.5,1909.3,0.16341031]
[1741954539407,0.4268,1909.5,1909.2,5.23768]
[1741954539605,0.4268,1909.5,1909.3,5.40078031]
[1741954539998,0.4268,1909.5,1909.3,10.63814031]
[1741954540235,0.4268,1909.5,1909.4,5.23724]
[1741954540543,9.7302182,1909.9,1909.6,5.23661]
[1741954540830,3.4268,1909.8,1909.7,0.16284371]
[1741954540993,8.66295,1909.8,1909.4,10.47437]
[1741954541195,8.66295,1909.8,1909.5,0.16322048]
[1741954541438,3.4268,1909.8,1909.5,10.63700048]
[1741954541635,3.4268,1909.8,1909.6,5.23669]
[1741954541799,0.4268,1909.8,1909.7,0.16284371]
[1741954541993,0.4268,1909.8,1909.7,5.39926371]
[1741954542305,5.5068,1910.0,1909.8,5.23615]
[1741954542691,8.5068,1910.0,1909.9,0.16246702]
[1741954543109,8.5068,1910.0,1909.8,5.23615]
[1741954543312,8.5068,1910.0,1909.9,0.16246702]
[1741954543496,13.7424,1910.0,1909.9,0.16246702]
[1741954543719,0.4268,1909.8,1909.5,5.23686]
[1741954543929,8.66304,1909.8,1909.5,5.23693]
[1741954544109,3.4268,1909.8,1909.6,0.16283373]
[1741954545342,8.66308,1909.8,1909.6,0.16283373]
[1741954545645,3.4268,1909.8,1909.5,5.23687]
[1741954545800,3.4268,1909.8,1909.6,0.16264102]
[1741954546004,3.4268,1909.8,1909.6,5.39915102]
[1741954546216,3.0,1909.8,1909.6,10.63567102]
[1741954546422,3.0,1909.8,1909.6,5.39915102]
[1741954546628,3.4268,1909.9,1909.7,5.23622]
[1741954546827,17.7548,1910.1,1909.8,0.16226429]
[1741954547007,22.8618,1910.1,1909.8,5.23605]
[1741954547205,22.8618,1910.1,1909.9,0.16207595]
[1741954547409,22.8618,1910.1,1909.8,5.23605]
[1741954547610,25.8618,1910.1,1910.0,0.16188763]
[1741954547835,25.8618,1910.1,1909.7,5.23639]
[1741954548035,35.3295382,1910.1,1910.0,0.16188763]
[1741954548199,35.3295382,1910.1,1909.5,5.23677]
[1741954548200,5.23563,1910.0,1909.5,5.23677]
[1741954548406,0.4268,1910.0,1909.5,0.05236604]
[1741954548633,0.4268,1910.0,1909.5,5.23693]
[1741954549022,5.66243,1910.0,1909.5,5.23693]
[1741954549207,5.66243,1910.0,1909.6,5.23663]
[1741954549408,0.4268,1910.0,1909.6,5.23663]
[1741954549712,5.6624,1910.0,1909.6,5.23663]
[1741954549914,0.4268,1910.0,1909.6,10.47317]
[1741954550118,0.4268,1910.0,1909.6,5.23654]
[1741954550329,0.4268,1910.0,1909.7,5.2363]
[1741954551109,0.4268,1910.0,1909.6,10.47314]
[1741954551311,5.66256,1910.0,1909.6,5.23654]
[1741954551515,5.66256,1910.0,1909.6,10.47309]
[1741954552048,0.4268,1910.0,1909.7,10.47269]
[1741954552240,0.4268,1910.0,1909.7,5.23628]
[1741954552437,0.4268,1910.0,1909.8,5.23612]
[1741954552748,5.66252,1910.0,1909.6,5.23657]
[1741954553047,5.66301,1909.8,1909.5,5.23681]
[1741954553431,5.66301,1909.8,1909.4,11.32724]
[1741954553629,5.23682,1909.6,1909.4,6.09]
[1741954553833,0.4268,1909.5,1909.4,6.09]
[1741954555236,10.76745,1909.7,1909.3,10.47474]
[1741954555447,10.76745,1909.7,1909.3,5.23736]
[1741954555650,5.23686,1909.6,1909.2,5.23775]
[1741954556025,0.4268,1909.5,1909.2,5.23775]
[1741954556848,0.4268,1909.5,1909.2,5.23762]
[1741954557767,0.4268,1909.5,1909.1,10.47596]
[1741954558063,5.66388,1909.5,1909.1,5.23791]
[1741954558267,5.66388,1909.5,1909.1,5.23789]
[1741954558554,5.66388,1909.5,1909.2,5.23769]
[1741954558726,0.4268,1909.5,1909.2,5.23768]
[1741954558929,0.4268,1909.5,1909.3,5.23749]
[1741954559435,0.4268,1909.5,1909.2,5.23768]
[1741954559749,0.4268,1909.5,1909.3,5.23746]
[1741954560259,0.4268,1909.5,1909.2,10.47533]
[1741954560452,0.4268,1909.5,1909.2,5.23765]
[1741954560453,5.66379,1909.5,1909.2,5.23765]
[1741954560754,5.23761,1909.3,1909.0,0.48144312]
[1741954561245,5.66406,1909.4,1909.1,5.23796]
[1741954561740,5.66406,1909.4,1909.0,5.71953312]
[1741954561945,5.66406,1909.4,1909.1,5.23795]
[1741954562142,0.4268,1909.4,1908.9,5.23861]
[1741954562347,5.23756,1909.3,1909.0,5.23815]
[1741954562857,5.23826,1909.1,1908.7,6.04398]
[1741954563024,5.66506,1909.1,1908.7,11.283]
[1741954563227,5.66506,1909.1,1908.7,5.23902]
[1741954563451,5.66506,1909.1,1908.8,0.16441568]
[1741954563654,5.23836,1909.0,1908.8,0.16441568]
[1741954563830,5.66506,1909.1,1908.8,0.16441568]
[1741954564032,5.66501,1909.1,1908.8,0.16441568]
[1741954564438,5.66501,1909.1,1908.8,5.40326568]
[1741954564756,10.33283,1909.2,1908.8,0.16441568]
[1741954564757,5.095,1909.2,1908.8,0.16441568]
[1741954564963,5.095,1909.2,1908.9,5.23852]
[1741954565163,10.33285,1909.2,1908.9,5.23852]
[1741954565370,10.33285,1909.2,1909.0,0.16403864]
[1741954565539,15.57084,1909.2,1909.0,0.16403864]
[1741954565868,5.23862,1908.9,1908.6,5.2394]
[1741954566964,5.6657,1908.8,1908.5,5.23948]
[1741954567134,10.90478,1908.8,1908.4,5.23997]
[1741954567335,5.23927,1908.7,1908.3,11.24463]
[1741954567674,5.5308,1908.8,1908.5,5.2396]
[1741954567968,10.76979,1908.8,1908.4,5.23992]
[1741954568374,5.23927,1908.7,1908.4,5.23992]
[1741954568748,10.76975,1908.8,1908.5,5.2397]
[1741954569076,5.5308,1908.8,1908.5,10.47926]
[1741954569277,5.5308,1908.8,1908.4,5.23982]
[1741954569438,5.5308,1908.8,1908.6,5.2392]
[1741954569638,5.5308,1908.8,1908.5,5.23969]
[1741954570116,10.7697,1908.8,1908.4,5.23992]
[1741954570670,5.5308,1908.8,1908.5,5.23956]
[1741954571364,10.76981,1908.8,1908.4,10.47972]
[1741954571672,10.76981,1908.8,1908.4,5.23983]
[1741954572467,5.23919,1908.7,1908.3,5.24011]
[1741954572658,10.76981,1908.8,1908.4,10.47962]
[1741954573062,16.0089,1908.8,1908.4,5.23978]
[1741954573237,5.2392,1908.7,1908.4,5.23978]
[1741954573567,5.2392,1908.7,1908.3,5.24023]
[1741954573732,5.23953,1908.6,1908.2,5.24046]
[1741954573937,0.4268,1908.5,1908.2,5.24046]
[1741954574134,0.4268,1908.5,1908.3,5.24025]
[1741954574865,0.4268,1908.5,1908.3,5.2401]
[1741954575073,5.66598,1908.7,1908.3,5.2401]
[1741954575274,5.104,1908.8,1908.6,5.23944]
[1741954575469,5.104,1908.8,1908.5,5.2397]
[1741954575660,5.104,1908.8,1908.5,10.4793]
[1741954575859,5.104,1908.8,1908.5,5.23963]
[1741954576575,10.34305,1908.8,1908.4,5.23996]
[1741954577641,10.34305,1908.8,1908.4,5.23981]
[1741954578380,10.34305,1908.8,1908.4,10.47962]
[1741954578574,10.34305,1908.8,1908.5,5.39961716]
[1741954578776,5.104,1908.8,1908.5,5.39946716]
[1741954578967,5.104,1908.8,1908.6,5.23928]
[1741954579163,5.104,1908.8,1908.6,10.47858]
[1741954579367,6.02,1909.1,1908.8,5.23889]
[1741954579573,3.0,1909.0,1908.7,6.22143999]
[1741954579770,3.0,1909.0,1908.9,0.15917291]
[1741954580171,3.0,1909.0,1908.7,6.06189]
[1741954580484,3.0,1909.0,1908.8,0.15936144]
[1741954583086,8.23835,1909.0,1908.8,0.15936144]
[1741954583270,5.23861,1908.9,1908.8,0.15936144]
[1741954583456,5.23861,1908.9,1908.5,10.47925]
[1741954583785,5.23861,1908.9,1908.8,0.15936144]
[1741954584083,5.23898,1908.8,1908.4,5.99367]
[1741954584287,5.23898,1908.8,1908.4,11.23349]
[1741954584488,5.66543,1908.9,1908.5,5.23967]
[1741954584784,5.66543,1908.9,1908.4,5.99361]
[1741954584988,5.23902,1908.8,1908.4,5.99361]
[1741954585152,5.23902,1908.8,1908.4,11.23349]
[1741954585694,10.47809,1908.8,1908.4,5.23981]
[1741954585904,5.23902,1908.8,1908.4,5.23981]
[1741954586400,10.47813,1908.8,1908.4,5.23981]
[1741954586555,5.66544,1908.9,1908.4,5.23981]
[1741954586876,10.90428,1908.9,1908.5,5.23957]
[1741954587084,10.47796,1908.8,1908.4,5.23999]
[1741954587973,5.23916,1908.7,1908.4,5.23999]
[1741954588282,10.47791,1908.8,1908.4,10.47979]
[1741954588460,5.23889,1908.8,1908.4,10.47979]
[1741954588659,5.23889,1908.8,1908.4,5.2398]
[1741954588866,5.23889,1908.8,1908.4,10.47963]
[1741954589372,5.23889,1908.8,1908.4,5.2398]
[1741954589575,5.23889,1908.8,1908.4,5.29219436]
[1741954589775,5.23889,1908.8,1908.5,5.23961]
[1741954590277,10.73644,1908.9,1908.5,5.23956]
[1741954590680,15.97525,1908.9,1908.5,5.23956]
[1741954590991,10.73644,1908.9,1908.5,5.23956]
[1741954591189,15.97524,1908.9,1908.5,5.23956]
[1741954592483,5.23898,1908.8,1908.4,5.23995]
[1741954592691,5.23898,1908.8,1908.4,10.47979]
[1741954592868,5.23898,1908.8,1908.4,10.47966]
[1741954593075,5.23898,1908.8,1908.4,5.23982]
[1741954593555,5.23898,1908.8,1908.5,0.15996119]
[1741954594392,5.23928,1908.7,1908.5,0.15996119]
[1741954594601,0.4268,1908.6,1908.5,0.15996119]
[1741954594805,0.4268,1908.6,1908.3,5.24024]
[1741954594965,0.4268,1908.6,1908.5,0.15998388]
[1741954595588,0.4268,1908.6,1908.3,5.24024]
[1741954595796,0.4268,1908.6,1908.5,0.15998388]
[1741954596089,0.4268,1908.6,1908.3,5.24024]
[1741954596294,5.23928,1908.7,1908.4,5.40012249]
[1741954597493,5.66572,1908.8,1908.4,10.63990249]
[1741954597794,10.90474,1908.8,1908.4,5.39995249]
[1741954598000,10.90484,1908.8,1908.4,5.39995249]
[1741954598374,5.66572,1908.8,1908.4,10.63980249]
[1741954598560,5.66572,1908.8,1908.5,5.23968]
[1741954598956,0.4268,1908.8,1908.6,0.15981798]
[1741954599162,5.23865,1908.9,1908.6,0.15981798]
[1741954599361,5.053,1908.8,1908.6,0.15981798]
[1741954600003,0.4268,1908.7,1908.6,0.15981798]
[1741954600196,5.66596,1908.7,1908.6,0.15981798]
[1741954600494,5.66596,1908.7,1908.6,0.15978962]
[1741954600677,5.66596,1908.7,1908.3,6.01063]
[1741954600883,5.66596,1908.7,1908.4,0.16016683]
[1741954601195,5.66596,1908.7,1908.3,5.24023]
[1741954601196,5.23954,1908.6,1908.3,5.24023]
[1741954601392,5.23954,1908.6,1908.5,0.15997822]
[1741954601807,0.4268,1908.5,1908.2,5.24038]
[1741954602511,0.4268,1908.5,1908.2,10.48074]
[1741954602805,10.90536,1908.7,1908.3,5.24023]
[1741954603023,5.666,1908.7,1908.3,5.24011]
[1741954603182,5.66546,1908.9,1908.6,5.23935]
[1741954603515,5.066,1908.7,1908.4,10.4797]
[1741954603713,5.066,1908.7,1908.4,5.23982]
[1741954603861,10.30523,1908.7,1908.4,5.23982]
[1741954604308,5.066,1908.7,1908.4,5.23982]
[1741954604505,5.066,1908.7,1908.5,5.23956]
[1741954606083,5.066,1908.7,1908.4,5.23982]
[1741954606575,10.72841,1908.9,1908.6,5.23933]
[1741954608199,10.7285,1908.9,1908.6,5.23933]
[1741954608501,10.7285,1908.9,1908.7,0.15969179]
[1741954608814,10.7285,1908.9,1908.6,5.23933]
[1741954609016,13.7285,1908.9,1908.8,0.15950324]
[1741954609614,8.4898,1908.9,1908.6,5.23933]
[1741954609813,8.4898,1908.9,1908.8,0.15950324]
[1741954609977,8.4898,1908.9,1908.7,0.15969179]
[1741954610177,8.4898,1908.9,1908.8,0.15950324]
[1741954610576,8.4898,1908.9,1908.6,10.47861]
[1741954610887,8.063,1908.9,1908.7,5.39884179]
[1741954611291,0.4268,1909.1,1908.7,0.15969179]
[1741954611510,5.4828,1909.1,1908.9,5.23838]
[1741954611823,8.4828,1909.1,1909.0,0.15900707]
[1741954612192,13.72087,1909.1,1908.8,5.23887]
[1741954612386,13.72087,1909.1,1909.0,0.15894469]
[1741954612629,13.72087,1909.1,1908.9,0.1591332]
[1741954612944,3.4268,1909.1,1909.0,0.15894469]
[1741954613151,8.052,1909.1,1909.0,0.15894469]
[1741954614029,5.052,1909.1,1909.0,5.39728469]
[1741954614342,5.052,1909.1,1909.0,5.39725066]
[1741954614703,13.28854,1909.3,1909.0,5.39725066]
[1741954615240,13.28854,1909.3,1909.0,0.15891066]
[1741954615440,0.4268,1909.2,1909.0,0.15891066]
[1741954615738,5.23807,1909.1,1908.8,5.23885]
[1741954615900,5.66467,1909.2,1908.8,5.23885]
[1741954616105,5.66467,1909.2,1908.8,5.23877]
[1741954616940,5.66467,1909.2,1908.9,5.2386]
[1741954617113,5.66464,1909.2,1908.9,5.2386]
[1741954617316,5.66464,1909.2,1908.8,5.23876]
[1741954617517,10.90263,1909.2,1908.8,5.23876]
[1741954618038,5.23813,1909.1,1908.8,5.23876]
[1741954618215,10.90261,1909.2,1908.8,5.23876]
[1741954618537,10.90261,1909.2,1908.7,10.47816]
[1741954618538,5.23809,1909.1,1908.7,10.47816]
[1741954618746,5.23836,1909.0,1908.7,5.23901]
[1741954618953,5.23836,1909.0,1908.6,5.23937]
[1741954618954,0.4268,1908.9,1908.6,5.23937]
[1741954619141,5.66545,1908.9,1908.6,5.23937]
[1741954619753,5.66545,1908.9,1908.5,6.03176]
[1741954619908,5.66545,1908.9,1908.5,5.23946]
[1741954620929,10.90424,1908.9,1908.5,5.23946]
[1741954621131,15.95124,1908.9,1908.5,5.23946]
[1741954621619,5.047,1908.9,1908.6,5.23926]
[1741954621821,5.4738,1908.9,1908.6,5.23926]
[1741954622019,15.95132,1908.9,1908.5,5.99091]
[1741954622245,5.23902,1908.8,1908.4,10.47984]
[1741954622407,5.23902,1908.8,1908.5,5.23964]
[1741954622805,10.71245,1908.9,1908.5,5.23964]
[1741954623546,10.71245,1908.9,1908.6,0.15961379]
[1741954625311,10.71245,1908.9,1908.6,5.39903379]
[1741954625747,5.4738,1908.9,1908.6,5.39903379]
[1741954626849,5.4738,1908.9,1908.6,5.39892379]
[1741954627214,5.047,1908.9,1908.6,0.94171379]
[1741954627534,5.047,1908.9,1908.6,6.18095379]
[1741954627850,0.4268,1909.0,1908.6,0.94171379]
[1741954628147,5.034,1909.1,1908.8,5.23885]
[1741954628348,10.27216,1909.1,1908.8,5.23885]
[1741954628543,10.27216,1909.1,1908.9,0.15905948]
[1741954628842,10.27216,1909.1,1908.8,5.23885]
[1741954629148,10.27216,1909.1,1908.9,0.15905948]
[1741954629644,15.51043,1909.1,1908.9,0.15905948]
[1741954629945,0.4268,1908.9,1908.6,5.23941]
[1741954630179,5.66559,1908.9,1908.7,0.15943656]
[1741954630653,5.23879,1908.9,1908.7,0.15943656]
[1741954630835,5.23879,1908.9,1908.6,6.0177]
[1741954631040,5.23879,1908.9,1908.8,0.15924801]
[1741954631451,5.66559,1908.9,1908.8,0.15924801]
[1741954632254,5.66559,1908.9,1908.6,5.23942]
[1741954632445,5.66559,1908.9,1908.8,0.15932172]
[1741954632657,10.90443,1908.9,1908.7,0.15951028]
[1741954632846,10.90443,1908.9,1908.8,0.15932172]
[1741954633242,10.90443,1908.9,1908.5,5.23953]
[1741954633619,5.23901,1908.8,1908.6,0.15969885]
[1741954633816,5.23916,1908.7,1908.6,0.15969885]
[1741954634023,5.66596,1908.7,1908.6,0.15969885]
[1741954634377,5.2398,1908.5,1908.0,12.11673]
[1741954634674,5.2398,1908.5,1908.1,5.24071]
[1741954635162,5.66627,1908.6,1908.3,5.24023]
[1741954635956,5.66603,1908.7,1908.3,6.01513]
[1741954636157,10.90538,1908.7,1908.3,6.01513]
[1741954636324,5.23956,1908.6,1908.2,5.24053]
[1741954636520,10.47921,1908.6,1908.2,5.24053]
[1741954636720,5.23956,1908.6,1908.2,10.48092]
[1741954637244,5.23956,1908.6,1908.3,5.24025]
[1741954637756,5.66602,1908.7,1908.3,5.24005]
[1741954638256,0.4268,1908.7,1908.4,5.23998]
[1741954638552,21.34849634,1908.8,1908.5,5.39960031]
[1741954638553,6.02,1908.8,1908.5,5.39960031]
[1741954638757,6.02,1908.8,1908.6,5.23928]
[1741954639130,6.02,1908.8,1908.7,0.15970315]
[1741954639332,6.02,1908.8,1908.7,6.06166]
[1741954639562,6.02,1908.8,1908.7,6.22136315]
[1741954642578,8.029,1909.1,1908.8,10.47736]
[1741954642934,8.029,1909.1,1908.9,0.15924096]
[1741954643170,5.47078716,1909.3,1908.9,0.15924096]
[1741954643340,8.027,1909.2,1908.9,5.39773096]
[1741954644271,13.26489,1909.2,1908.9,0.15924096]
[1741954645737,13.26489,1909.2,1908.9,5.39777096]
[1741954646134,13.26489,1909.2,1908.9,0.15924096]
[1741954647673,4.6592182,1909.1,1908.9,0.15924096]
[1741954647853,5.66514,1909.0,1908.9,0.15924096]
[1741954648052,5.66514,1909.0,1908.7,5.23906]
[1741954648252,5.66514,1909.0,1908.9,0.15898008]
[1741954648455,5.66514,1909.0,1908.8,0.15916861]
[1741954648763,5.66514,1909.0,1908.9,0.15898008]
[1741954649178,0.4268,1909.0,1908.7,5.23906]
[1741954649384,0.4268,1909.0,1908.9,0.15898008]
[1741954649680,0.4268,1909.0,1908.8,0.15916861]
[1741954649988,0.4268,1909.0,1908.9,0.15898008]
[1741954650196,5.66514,1909.0,1908.9,0.15898008]
[1741954650374,5.66514,1909.0,1908.7,5.23906]
[1741954650551,5.66514,1909.0,1908.9,0.15898008]
[1741954650751,5.66514,1909.0,1908.7,5.23906]
[1741954650952,5.66514,1909.0,1908.8,0.15916861]
[1741954651592,0.4268,1909.0,1908.8,0.15916861]
[1741954651893,5.66522,1909.0,1908.8,0.15916861]
[1741954652298,10.90374,1909.0,1908.8,0.15916861]
[1741954652494,5.23888,1908.9,1908.5,6.01358]
[1741954652732,5.239,1908.8,1908.4,10.47975]
[1741954652857,10.256,1908.8,1908.4,10.47975]
[1741954653257,10.256,1908.8,1908.4,5.23986]
[1741954653495,10.256,1908.8,1908.5,5.39949806]
[1741954654769,5.017,1908.8,1908.5,5.39949806]
[1741954656509,5.017,1908.8,1908.6,5.23943]
[1741954656917,5.017,1908.8,1908.7,0.15947059]
[1741954657315,5.017,1908.8,1908.6,6.05629]
[1741954657473,5.017,1908.8,1908.7,0.15947059]
[1741954657678,5.017,1908.8,1908.7,5.39863059]
[1741954657909,5.017,1908.8,1908.7,5.23916]
[1741954658111,6.02,1909.1,1908.8,5.2388]
[1741954658384,15.91471,1909.2,1908.9,0.15909351]
[1741954658583,5.23824,1909.1,1908.9,0.15909351]
[1741954658975,5.23824,1909.1,1908.8,5.23889]
[1741954659178,5.23824,1909.1,1909.0,0.15893903]
[1741954659421,5.23824,1909.1,1908.9,0.15912754]
[1741954659718,5.4378,1909.2,1909.0,0.15893903]
[1741954659923,8.66459,1909.2,1909.0,0.15893903]
[1741954660075,13.67459,1909.2,1909.0,0.15893903]
[1741954660280,13.67459,1909.2,1908.8,10.47759]